[Event "Late-Titled-Tuesday-Blitz-October-24-2023"]
[Site "Chess.com"]
[Date "2023.10.24"]
[Round "6"]
[White "jk13"]
[Black "vladislavkovalev"]
[Result "0-1"]
[WhiteElo "2688"]
[BlackElo "2876"]
[TimeControl "180+1"]
[EndTime "15:04:12 PDT"]
[Termination "vladislavkovalev won by resignation"]

1. e4 {[%clk 0:03:00.9]} 1... e5 {[%clk 0:02:57.8]} 2. Nf3 {[%clk 0:03:00.8]}
2... Nc6 {[%clk 0:02:58.4]} 3. Bc4 {[%clk 0:03:01.4]} 3... Nf6 {[%clk
0:02:58.5]} 4. d3 {[%clk 0:03:02]} 4... Bc5 {[%clk 0:02:59.1]} 5. c3 {[%clk
0:03:02.6]} 5... d6 {[%clk 0:02:59.8]} 6. Bb3 {[%clk 0:03:03.2]} 6... a6 {[%clk
0:03:00.3]} 7. Nbd2 {[%clk 0:03:03.7]} 7... h6 {[%clk 0:03:00]} 8. h3 {[%clk
0:03:04.2]} 8... Ba7 {[%clk 0:02:53.1]} 9. Nf1 {[%clk 0:03:04.3]} 9... Be6
{[%clk 0:02:53.9]} 10. Ng3 {[%clk 0:03:03.9]} 10... O-O {[%clk 0:02:53.1]} 11.
O-O {[%clk 0:03:03.4]} 11... Re8 {[%clk 0:02:50.6]} 12. Qe2 {[%clk 0:02:52.6]}
12... d5 {[%clk 0:02:50.7]} 13. Nh4 {[%clk 0:02:47.8]} 13... Na5 {[%clk
0:02:41.5]} 14. Nhf5 {[%clk 0:02:14.6]} 14... Nxb3 {[%clk 0:02:38.8]} 15. axb3
{[%clk 0:02:15.5]} 15... dxe4 {[%clk 0:02:39.4]} 16. dxe4 {[%clk 0:02:15.8]}
16... Bxb3 {[%clk 0:02:36.9]} 17. c4 {[%clk 0:01:58.4]} 17... b5 {[%clk
0:02:20.1]} 18. cxb5 {[%clk 0:01:58.6]} 18... axb5 {[%clk 0:02:21]} 19. Qxb5
{[%clk 0:01:55.6]} 19... Bxf2+ {[%clk 0:01:58.1]} 20. Kxf2 {[%clk 0:01:55.1]}
20... Rxa1 {[%clk 0:01:58.5]} 21. Qxb3 {[%clk 0:01:55.3]} 21... Rxc1 {[%clk
0:01:50.4]} 22. Rxc1 {[%clk 0:01:44.3]} 22... Qd2+ {[%clk 0:01:50.9]} 23. Ne2
{[%clk 0:01:41.5]} 23... Nxe4+ {[%clk 0:01:51.2]} 24. Kg1 {[%clk 0:00:28.8]}
24... Qxe2 {[%clk 0:01:43.2]} 25. Rxc7 {[%clk 0:00:28.9]} 25... Qf2+ {[%clk
0:01:30.2]} 26. Kh1 {[%clk 0:00:24.9]} 26... Qxf5 {[%clk 0:01:31.1]} 0-1

[Event "Late-Titled-Tuesday-Blitz-October-24-2023"]
[Site "Chess.com"]
[Date "2023.10.24"]
[Round "6"]
[White "financieru"]
[Black "GMKrikor"]
[Result "0-1"]
[WhiteElo "2404"]
[BlackElo "2827"]
[TimeControl "180+1"]
[EndTime "15:04:12 PDT"]
[Termination "GMKrikor won on time"]

1. d4 {[%clk 0:00:11.2]} 1... Nf6 {[%clk 0:02:51.4]} 2. c4 {[%clk 0:00:12.1]}
2... g6 {[%clk 0:02:51.2]} 3. Nc3 {[%clk 0:00:13]} 3... d5 {[%clk 0:02:52]} 4.
cxd5 {[%clk 0:00:13.1]} 4... Nxd5 {[%clk 0:02:52.9]} 5. Na4 {[%clk 0:00:14]}
5... e5 {[%clk 0:02:34]} 6. e4 {[%clk 0:00:09.9]} 6... Nb6 {[%clk 0:02:28.9]} 7.
d5 {[%clk 0:00:08.4]} 7... c6 {[%clk 0:02:27.8]} 8. Nc3 {[%clk 0:00:05.9]} 8...
cxd5 {[%clk 0:02:26.2]} 9. exd5 {[%clk 0:00:04.6]} 9... Bg7 {[%clk 0:02:26.8]}
10. Nf3 {[%clk 0:00:04.4]} 10... O-O {[%clk 0:02:27.5]} 11. Be2 {[%clk
0:00:05.3]} 11... f5 {[%clk 0:02:28.1]} 12. O-O {[%clk 0:00:05.5]} 12... h6
{[%clk 0:02:28.8]} 13. Qb3 {[%clk 0:00:04.4]} 13... Kh7 {[%clk 0:02:27.5]} 14.
Rd1 {[%clk 0:00:00.6]} 14... e4 {[%clk 0:02:27.7]} 15. Nd4 {[%clk 0:00:00.3]}
15... Na6 {[%clk 0:02:27.5]} 16. Ne6 {[%clk 0:00:00.6]} 16... Bxe6 {[%clk
0:02:25.1]} 17. dxe6 {[%clk 0:00:01.5]} 17... Qe7 {[%clk 0:02:25.7]} 18. Bxa6
{[%clk 0:00:02.4]} 18... bxa6 {[%clk 0:02:24.5]} 19. Be3 {[%clk 0:00:03.3]}
19... Rab8 {[%clk 0:01:47.9]} 0-1

[Event "Late-Titled-Tuesday-Blitz-October-24-2023"]
[Site "Chess.com"]
[Date "2023.10.24"]
[Round "6"]
[White "hblanco"]
[Black "Sjakkerntobi"]
[Result "1-0"]
[WhiteElo "2734"]
[BlackElo "2508"]
[TimeControl "180+1"]
[EndTime "15:04:22 PDT"]
[Termination "hblanco won by checkmate"]

1. e4 {[%clk 0:03:00.9]} 1... e5 {[%clk 0:02:59.5]} 2. Nf3 {[%clk 0:03:00.9]}
2... Nc6 {[%clk 0:03:00.1]} 3. d4 {[%clk 0:03:01.3]} 3... exd4 {[%clk
0:03:00.2]} 4. Nxd4 {[%clk 0:03:02.2]} 4... Bc5 {[%clk 0:02:52.6]} 5. Nb3 {[%clk
0:03:02.1]} 5... Bb6 {[%clk 0:02:52.2]} 6. Nc3 {[%clk 0:03:02.8]} 6... d6 {[%clk
0:02:46.8]} 7. Qe2 {[%clk 0:03:02.8]} 7... Nge7 {[%clk 0:02:46.3]} 8. Be3 {[%clk
0:03:03.2]} 8... Be6 {[%clk 0:02:44.9]} 9. f3 {[%clk 0:03:01.4]} 9... Qd7 {[%clk
0:02:40]} 10. O-O-O {[%clk 0:03:00.8]} 10... O-O-O {[%clk 0:02:40.1]} 11. Bxb6
{[%clk 0:02:57.7]} 11... axb6 {[%clk 0:02:41]} 12. Qf2 {[%clk 0:02:49.3]} 12...
f5 {[%clk 0:02:39.6]} 13. Bb5 {[%clk 0:02:44.7]} 13... fxe4 {[%clk 0:02:39.8]}
14. Nxe4 {[%clk 0:02:45.6]} 14... Bf5 {[%clk 0:02:24.8]} 15. Nc3 {[%clk
0:02:41.2]} 15... Rhf8 {[%clk 0:02:22.8]} 16. Nd4 {[%clk 0:02:40.7]} 16... Bg6
{[%clk 0:02:22.1]} 17. Rhe1 {[%clk 0:02:39.1]} 17... Rf7 {[%clk 0:02:08.5]} 18.
Ne6 {[%clk 0:02:38.3]} 18... Re8 {[%clk 0:02:06.6]} 19. Qh4 {[%clk 0:02:28.7]}
19... Nf5 {[%clk 0:02:03.5]} 20. Qa4 {[%clk 0:02:29.2]} 20... Kb8 {[%clk
0:01:57.7]} 21. Nxc7 {[%clk 0:01:46.8]} 21... Rxe1 {[%clk 0:01:34.6]} 22. Rxe1
{[%clk 0:01:47.7]} 22... Qxc7 {[%clk 0:01:28]} 23. Re8+ {[%clk 0:01:38]} 23...
Nd8 {[%clk 0:01:19.1]} 24. Nd5 {[%clk 0:01:38.5]} 24... Qc8 {[%clk 0:00:15.3]}
25. Nxb6 {[%clk 0:01:37.1]} 25... Qc5 {[%clk 0:00:10.9]} 26. Qa8+ {[%clk
0:01:32.8]} 26... Kc7 {[%clk 0:00:11.2]} 27. Qxd8# {[%clk 0:01:33.7]} 1-0

[Event "Late-Titled-Tuesday-Blitz-October-24-2023"]
[Site "Chess.com"]
[Date "2023.10.24"]
[Round "6"]
[White "Hirna2005"]
[Black "Yushko_Olga"]
[Result "0-1"]
[WhiteElo "2309"]
[BlackElo "2142"]
[TimeControl "180+1"]
[EndTime "15:04:28 PDT"]
[Termination "Yushko_Olga won by checkmate"]

1. e4 {[%clk 0:02:57.3]} 1... e6 {[%clk 0:02:59.6]} 2. d4 {[%clk 0:02:56.5]}
2... d5 {[%clk 0:03:00]} 3. e5 {[%clk 0:02:57]} 3... c5 {[%clk 0:03:00]} 4. c3
{[%clk 0:02:57.6]} 4... Nc6 {[%clk 0:03:00.6]} 5. Be3 {[%clk 0:02:58.1]} 5...
Qb6 {[%clk 0:03:00.6]} 6. Qd2 {[%clk 0:02:58]} 6... cxd4 {[%clk 0:03:00.4]} 7.
cxd4 {[%clk 0:02:57.9]} 7... Bb4 {[%clk 0:03:00.2]} 8. Nc3 {[%clk 0:02:58.1]}
8... Nge7 {[%clk 0:03:00.1]} 9. Nf3 {[%clk 0:02:58.2]} 9... Nf5 {[%clk
0:02:59.9]} 10. Bd3 {[%clk 0:02:58.5]} 10... O-O {[%clk 0:02:57.1]} 11. O-O
{[%clk 0:02:57.5]} 11... Bd7 {[%clk 0:02:56.5]} 12. Bxf5 {[%clk 0:02:53]} 12...
exf5 {[%clk 0:02:57.4]} 13. Nxd5 {[%clk 0:02:46.8]} 13... Bxd2 {[%clk
0:02:54.3]} 14. Nxb6 {[%clk 0:02:47]} 14... axb6 {[%clk 0:02:44.3]} 15. Nxd2
{[%clk 0:02:45.8]} 15... Be6 {[%clk 0:02:43.8]} 16. b3 {[%clk 0:02:44]} 16...
Nb4 {[%clk 0:02:43.4]} 17. a4 {[%clk 0:02:34.6]} 17... Rfd8 {[%clk 0:02:34.6]}
18. Nc4 {[%clk 0:02:32.7]} 18... Nc2 {[%clk 0:02:29.6]} 19. Ra2 {[%clk 0:02:30]}
19... Bxc4 {[%clk 0:02:24]} 20. bxc4 {[%clk 0:02:27.7]} 20... Nxd4 {[%clk
0:02:24.3]} 21. Rb1 {[%clk 0:02:24.6]} 21... Nc6 {[%clk 0:02:19.4]} 22. Bxb6
{[%clk 0:02:21.6]} 22... Rd3 {[%clk 0:02:13.8]} 23. f4 {[%clk 0:02:17.5]} 23...
h6 {[%clk 0:01:59]} 24. Kf2 {[%clk 0:02:16.9]} 24... g5 {[%clk 0:01:57.4]} 25.
g3 {[%clk 0:02:14.8]} 25... Rc3 {[%clk 0:01:49.9]} 26. a5 {[%clk 0:01:53.8]}
26... Rxc4 {[%clk 0:01:48.6]} 27. Rd2 {[%clk 0:01:50.4]} 27... gxf4 {[%clk
0:01:47.4]} 28. gxf4 {[%clk 0:01:44.8]} 28... Rxf4+ {[%clk 0:01:46.6]} 29. Kg3
{[%clk 0:01:41.9]} 29... Rg4+ {[%clk 0:01:43.7]} 30. Kh3 {[%clk 0:01:40.8]}
30... Nxe5 {[%clk 0:01:41.3]} 31. Rb5 {[%clk 0:01:26]} 31... Nc4 {[%clk
0:01:37.3]} 32. Rd7 {[%clk 0:01:23.2]} 32... Rc8 {[%clk 0:01:29.3]} 33. Rxf5
{[%clk 0:01:18.9]} 33... Rg6 {[%clk 0:01:20.1]} 34. Rxb7 {[%clk 0:01:11.2]}
34... Nd6 {[%clk 0:01:19]} 35. a6 {[%clk 0:01:01.9]} 35... Rc3+ {[%clk
0:01:15.4]} 36. Kh4 {[%clk 0:00:57.1]} 36... Nxf5+ {[%clk 0:01:13.4]} 37. Kh5
{[%clk 0:00:57.6]} 37... Rg5# {[%clk 0:01:13.9]} 0-1

[Event "Late-Titled-Tuesday-Blitz-October-24-2023"]
[Site "Chess.com"]
[Date "2023.10.24"]
[Round "6"]
[White "jimis98"]
[Black "sergeikim"]
[Result "1/2-1/2"]
[WhiteElo "2749"]
[BlackElo "2601"]
[TimeControl "180+1"]
[EndTime "15:04:30 PDT"]
[Termination "Game drawn by repetition"]

1. d4 {[%clk 0:03:00.9]} 1... Nf6 {[%clk 0:02:59.3]} 2. Nf3 {[%clk 0:02:55.9]}
2... g6 {[%clk 0:02:59.3]} 3. g3 {[%clk 0:02:54.2]} 3... d6 {[%clk 0:02:59.5]}
4. Bg2 {[%clk 0:02:54.2]} 4... Bg7 {[%clk 0:02:59.8]} 5. O-O {[%clk 0:02:54.1]}
5... O-O {[%clk 0:02:59.9]} 6. c4 {[%clk 0:02:54.5]} 6... Nbd7 {[%clk
0:02:58.3]} 7. h3 {[%clk 0:02:54.4]} 7... e5 {[%clk 0:02:58.2]} 8. Nc3 {[%clk
0:02:50.9]} 8... exd4 {[%clk 0:02:57.9]} 9. Nxd4 {[%clk 0:02:50.7]} 9... Re8
{[%clk 0:02:57.6]} 10. b3 {[%clk 0:02:50.1]} 10... Nc5 {[%clk 0:02:57.1]} 11.
Bb2 {[%clk 0:02:47.7]} 11... c6 {[%clk 0:02:56.5]} 12. Rc1 {[%clk 0:02:45.8]}
12... Qe7 {[%clk 0:02:55.9]} 13. Re1 {[%clk 0:02:34.4]} 13... Nfe4 {[%clk
0:02:55.2]} 14. Nxe4 {[%clk 0:02:32.1]} 14... Nxe4 {[%clk 0:02:55.8]} 15. Qc2
{[%clk 0:02:32.6]} 15... Nxf2 {[%clk 0:02:53.7]} 16. Nxc6 {[%clk 0:02:26.7]}
16... Qe3 {[%clk 0:01:58.9]} 17. Bxg7 {[%clk 0:02:12.2]} 17... Qxg3 {[%clk
0:01:05.1]} 18. Qc3 {[%clk 0:00:46.7]} 18... Nxh3+ {[%clk 0:01:02]} 19. Kh1
{[%clk 0:00:46.1]} 19... Nf2+ {[%clk 0:00:45.6]} 20. Kg1 {[%clk 0:00:45.6]}
20... Nh3+ {[%clk 0:00:45.4]} 21. Kh1 {[%clk 0:00:46]} 21... Nf2+ {[%clk
0:00:43.5]} 22. Kg1 {[%clk 0:00:46]} 22... Nh3+ {[%clk 0:00:43.5]} 1/2-1/2

[Event "Late-Titled-Tuesday-Blitz-October-24-2023"]
[Site "Chess.com"]
[Date "2023.10.24"]
[Round "6"]
[White "mjelcic"]
[Black "ATM622"]
[Result "0-1"]
[WhiteElo "2149"]
[BlackElo "2417"]
[TimeControl "180+1"]
[EndTime "15:04:37 PDT"]
[Termination "ATM622 won by checkmate"]

1. c4 {[%clk 0:03:00.9]} 1... g6 {[%clk 0:02:56.4]} 2. Nc3 {[%clk 0:03:01]} 2...
Bg7 {[%clk 0:02:56.9]} 3. g3 {[%clk 0:03:01.9]} 3... Nf6 {[%clk 0:02:57.3]} 4.
Bg2 {[%clk 0:03:02.4]} 4... O-O {[%clk 0:02:57.9]} 5. e4 {[%clk 0:03:02.5]} 5...
c6 {[%clk 0:02:58.8]} 6. Nge2 {[%clk 0:03:01.9]} 6... e5 {[%clk 0:02:56.7]} 7.
O-O {[%clk 0:03:00.2]} 7... d6 {[%clk 0:02:54.9]} 8. d4 {[%clk 0:02:58.8]} 8...
exd4 {[%clk 0:02:54.9]} 9. Nxd4 {[%clk 0:02:58.4]} 9... Nbd7 {[%clk 0:02:54.9]}
10. h3 {[%clk 0:02:55.8]} 10... Re8 {[%clk 0:02:51.8]} 11. Re1 {[%clk
0:02:51.2]} 11... Qe7 {[%clk 0:02:27.2]} 12. Nc2 {[%clk 0:02:38.9]} 12... Ne5
{[%clk 0:02:21.1]} 13. b3 {[%clk 0:02:25.2]} 13... Nh5 {[%clk 0:02:19.6]} 14.
Bb2 {[%clk 0:02:21.6]} 14... a5 {[%clk 0:02:08.7]} 15. Qd2 {[%clk 0:02:19.4]}
15... Bxh3 {[%clk 0:02:07.4]} 16. Rad1 {[%clk 0:02:09.8]} 16... Bxg2 {[%clk
0:02:06.7]} 17. Kxg2 {[%clk 0:02:09.2]} 17... Rad8 {[%clk 0:02:04]} 18. Ba3
{[%clk 0:02:03]} 18... Bf8 {[%clk 0:01:58.2]} 19. Qd4 {[%clk 0:01:44.7]} 19...
Qg5 {[%clk 0:01:48.5]} 20. Qe3 {[%clk 0:01:36.2]} 20... Qg4 {[%clk 0:01:45.1]}
21. f4 {[%clk 0:01:14.2]} 21... Bh6 {[%clk 0:01:39.3]} 22. Qf2 {[%clk
0:01:08.8]} 22... Nxf4+ {[%clk 0:01:38.2]} 23. Kf1 {[%clk 0:00:54.5]} 23... Qh3+
{[%clk 0:01:36]} 24. Kg1 {[%clk 0:00:54.5]} 24... Ng4 {[%clk 0:01:35.7]} 25. Qf3
{[%clk 0:00:41]} 25... Qh2+ {[%clk 0:01:35]} 26. Kf1 {[%clk 0:00:41.1]} 26...
Qxc2 {[%clk 0:01:34.1]} 27. Kg1 {[%clk 0:00:17.5]} 27... Nh3+ {[%clk 0:01:22]}
28. Kh1 {[%clk 0:00:13]} 28... Qh2# {[%clk 0:01:21]} 0-1

[Event "Late-Titled-Tuesday-Blitz-October-24-2023"]
[Site "Chess.com"]
[Date "2023.10.24"]
[Round "6"]
[White "ikhasu"]
[Black "NowInChess"]
[Result "1-0"]
[WhiteElo "2381"]
[BlackElo "2182"]
[TimeControl "180+1"]
[EndTime "15:04:48 PDT"]
[Termination "ikhasu won on time"]

1. d4 {[%clk 0:03:00.9]} 1... Nf6 {[%clk 0:02:58.5]} 2. Nf3 {[%clk 0:03:01.1]}
2... g6 {[%clk 0:02:58.1]} 3. b3 {[%clk 0:02:59.2]} 3... Bg7 {[%clk 0:02:57.8]}
4. Bb2 {[%clk 0:02:59.6]} 4... O-O {[%clk 0:02:57.7]} 5. Nbd2 {[%clk 0:03:00.1]}
5... d5 {[%clk 0:02:56.3]} 6. g3 {[%clk 0:02:59.7]} 6... b5 {[%clk 0:02:48.7]}
7. Bg2 {[%clk 0:02:58.1]} 7... Bb7 {[%clk 0:02:48.4]} 8. O-O {[%clk 0:02:58.2]}
8... Nbd7 {[%clk 0:02:46.6]} 9. c4 {[%clk 0:02:55.3]} 9... bxc4 {[%clk
0:02:42.5]} 10. bxc4 {[%clk 0:02:55.2]} 10... c6 {[%clk 0:02:26.6]} 11. Ba3
{[%clk 0:02:49]} 11... Re8 {[%clk 0:02:14.2]} 12. Rb1 {[%clk 0:02:41.4]} 12...
Qc7 {[%clk 0:02:07.6]} 13. Qc2 {[%clk 0:02:36.1]} 13... Rac8 {[%clk 0:01:55.7]}
14. Rfc1 {[%clk 0:02:33.8]} 14... Ba6 {[%clk 0:01:15.3]} 15. Qa4 {[%clk
0:02:27.9]} 15... Bxc4 {[%clk 0:01:11.4]} 16. Nxc4 {[%clk 0:02:26.2]} 16... dxc4
{[%clk 0:01:12.3]} 17. Qxc4 {[%clk 0:02:25.6]} 17... Nb6 {[%clk 0:01:09.8]} 18.
Qb3 {[%clk 0:02:24.9]} 18... Nbd5 {[%clk 0:01:03.2]} 19. Ne5 {[%clk 0:02:21.9]}
19... Rb8 {[%clk 0:00:50.2]} 20. Qa4 {[%clk 0:02:07.7]} 20... Rxb1 {[%clk
0:00:48.6]} 21. Rxb1 {[%clk 0:02:07.2]} 21... Nc3 {[%clk 0:00:43.5]} 22. Qb3
{[%clk 0:01:45]} 22... Nxb1 {[%clk 0:00:40.1]} 23. Qxf7+ {[%clk 0:01:44.4]}
23... Kh8 {[%clk 0:00:36.4]} 24. Qb3 {[%clk 0:01:41.7]} 24... h6 {[%clk
0:00:16.2]} 25. Qxb1 {[%clk 0:01:36.3]} 25... Rb8 {[%clk 0:00:12.5]} 26. Qxg6
{[%clk 0:01:34.7]} 26... Kg8 {[%clk 0:00:07.4]} 27. Bh3 {[%clk 0:01:27.1]} 27...
Qd8 {[%clk 0:00:03.7]} 28. Be6+ {[%clk 0:01:26.4]} 28... Kh8 {[%clk 0:00:02.7]}
29. Nf7+ {[%clk 0:01:26.3]} 1-0

[Event "Late-Titled-Tuesday-Blitz-October-24-2023"]
[Site "Chess.com"]
[Date "2023.10.24"]
[Round "6"]
[White "HaryKane"]
[Black "dedpihto_v_kozhanom_palto"]
[Result "0-1"]
[WhiteElo "2515"]
[BlackElo "2643"]
[TimeControl "180+1"]
[EndTime "15:04:53 PDT"]
[Termination "dedpihto_v_kozhanom_palto won by resignation"]

1. e4 {[%clk 0:02:59.9]} 1... g6 {[%clk 0:02:59.9]} 2. d4 {[%clk 0:02:57.4]}
2... Bg7 {[%clk 0:03:00.3]} 3. c4 {[%clk 0:02:54.6]} 3... d6 {[%clk 0:03:00.2]}
4. Nc3 {[%clk 0:02:53.3]} 4... Nc6 {[%clk 0:03:00.7]} 5. Be3 {[%clk 0:02:53.4]}
5... e5 {[%clk 0:03:01]} 6. Nge2 {[%clk 0:02:53.3]} 6... f5 {[%clk 0:03:01]} 7.
exf5 {[%clk 0:02:51.4]} 7... Bxf5 {[%clk 0:03:01.9]} 8. Qd2 {[%clk 0:02:51.4]}
8... Nf6 {[%clk 0:03:01.9]} 9. f3 {[%clk 0:02:49.3]} 9... e4 {[%clk 0:03:02.2]}
10. O-O-O {[%clk 0:02:45.1]} 10... exf3 {[%clk 0:02:56.3]} 11. gxf3 {[%clk
0:02:44.8]} 11... O-O {[%clk 0:02:56.9]} 12. Ng3 {[%clk 0:02:39.2]} 12... Qd7
{[%clk 0:02:52.3]} 13. h4 {[%clk 0:02:36.5]} 13... Rae8 {[%clk 0:02:35.1]} 14.
Bh6 {[%clk 0:02:29.1]} 14... Nxd4 {[%clk 0:02:05.1]} 15. Bxg7 {[%clk 0:02:18.1]}
15... Nxf3 {[%clk 0:02:05.4]} 16. Qf2 {[%clk 0:01:50.9]} 16... Qxg7 {[%clk
0:02:03.8]} 17. Qxf3 {[%clk 0:01:48.1]} 17... Qh6+ {[%clk 0:02:03.6]} 18. Rd2
{[%clk 0:01:40.3]} 18... Re1+ {[%clk 0:02:03.6]} 19. Nd1 {[%clk 0:01:34.9]}
19... Bg4 {[%clk 0:02:03.7]} 20. Qb3 {[%clk 0:01:13.1]} 20... Rxd1+ {[%clk
0:01:50.2]} 21. Qxd1 {[%clk 0:01:13.2]} 21... Bxd1 {[%clk 0:01:50.8]} 22. Kxd1
{[%clk 0:01:13.9]} 22... Qf4 {[%clk 0:01:37.5]} 23. Rg1 {[%clk 0:01:09.7]} 23...
Ng4 {[%clk 0:01:34.2]} 24. Be2 {[%clk 0:00:49.8]} 24... Ne3+ {[%clk 0:01:30.3]}
25. Kc1 {[%clk 0:00:42.8]} 25... Nxc4 {[%clk 0:01:30.5]} 26. Bxc4+ {[%clk
0:00:42.4]} 26... Qxc4+ {[%clk 0:01:31.4]} 27. Kb1 {[%clk 0:00:41.7]} 27... Qxh4
{[%clk 0:01:29]} 28. Rdg2 {[%clk 0:00:37.5]} 28... d5 {[%clk 0:01:24.1]} 29. a3
{[%clk 0:00:37.5]} 29... c5 {[%clk 0:01:23.6]} 30. Rh1 {[%clk 0:00:35.4]} 30...
Qg4 {[%clk 0:01:19.7]} 31. Rhg1 {[%clk 0:00:32.9]} 31... c4 {[%clk 0:01:17.6]}
32. Ka2 {[%clk 0:00:32]} 32... d4 {[%clk 0:01:11.3]} 33. Nf1 {[%clk 0:00:31.7]}
33... Qe6 {[%clk 0:01:08.3]} 34. Ka1 {[%clk 0:00:28.4]} 34... Qe1+ {[%clk
0:01:05.9]} 35. Ka2 {[%clk 0:00:28.2]} 35... Rxf1 {[%clk 0:01:06]} 0-1

[Event "Late-Titled-Tuesday-Blitz-October-24-2023"]
[Site "Chess.com"]
[Date "2023.10.24"]
[Round "6"]
[White "djano"]
[Black "SanchezKelvin"]
[Result "1-0"]
[WhiteElo "2687"]
[BlackElo "2559"]
[TimeControl "180+1"]
[EndTime "15:04:55 PDT"]
[Termination "djano won on time"]

1. e4 {[%clk 0:03:00.9]} 1... e5 {[%clk 0:02:57.8]} 2. Nf3 {[%clk 0:03:01.1]}
2... Nc6 {[%clk 0:02:57.7]} 3. Bc4 {[%clk 0:03:01.2]} 3... Bc5 {[%clk
0:02:57.6]} 4. c3 {[%clk 0:03:01.2]} 4... Nf6 {[%clk 0:02:57.5]} 5. d4 {[%clk
0:03:01.2]} 5... exd4 {[%clk 0:02:58.4]} 6. cxd4 {[%clk 0:03:01.4]} 6... Bb4+
{[%clk 0:02:58.4]} 7. Nbd2 {[%clk 0:02:57.6]} 7... Nxe4 {[%clk 0:02:57.3]} 8.
O-O {[%clk 0:02:54.7]} 8... Bxd2 {[%clk 0:02:57]} 9. Nxd2 {[%clk 0:02:46]} 9...
Nxd2 {[%clk 0:02:56]} 10. Re1+ {[%clk 0:02:44.6]} 10... Ne7 {[%clk 0:02:55.2]}
11. Qxd2 {[%clk 0:02:38.1]} 11... O-O {[%clk 0:02:49.3]} 12. d5 {[%clk
0:02:28.4]} 12... d6 {[%clk 0:02:48.2]} 13. b4 {[%clk 0:02:27.8]} 13... Bf5
{[%clk 0:02:41.8]} 14. Bb2 {[%clk 0:02:26.6]} 14... Qd7 {[%clk 0:02:38.7]} 15.
Qd4 {[%clk 0:02:13.6]} 15... f6 {[%clk 0:02:36.2]} 16. Re3 {[%clk 0:02:12.3]}
16... Bg6 {[%clk 0:02:31.4]} 17. Re6 {[%clk 0:01:58.9]} 17... Rae8 {[%clk
0:02:20.7]} 18. Rae1 {[%clk 0:01:50.2]} 18... Nc8 {[%clk 0:02:12.9]} 19. h4
{[%clk 0:01:43.1]} 19... Bf7 {[%clk 0:02:07.4]} 20. Kh2 {[%clk 0:01:37.8]} 20...
Bxe6 {[%clk 0:02:00]} 21. dxe6 {[%clk 0:01:35.1]} 21... Qe7 {[%clk 0:01:59.8]}
22. h5 {[%clk 0:01:29.1]} 22... c6 {[%clk 0:01:59.3]} 23. h6 {[%clk 0:01:25.8]}
23... gxh6 {[%clk 0:01:49.2]} 24. Re3 {[%clk 0:01:24.7]} 24... d5 {[%clk
0:01:48.3]} 25. Bd3 {[%clk 0:01:16.8]} 25... Qd6+ {[%clk 0:01:44.1]} 26. Rg3+
{[%clk 0:01:15]} 26... Kh8 {[%clk 0:01:35.9]} 27. Qxf6+ {[%clk 0:01:13.4]} 1-0

[Event "Late-Titled-Tuesday-Blitz-October-24-2023"]
[Site "Chess.com"]
[Date "2023.10.24"]
[Round "6"]
[White "midedu"]
[Black "Zhbugnoimt"]
[Result "0-1"]
[WhiteElo "2081"]
[BlackElo "2545"]
[TimeControl "180+1"]
[EndTime "15:04:59 PDT"]
[Termination "Zhbugnoimt won by resignation"]

1. e4 {[%clk 0:03:00.9]} 1... c5 {[%clk 0:02:57.6]} 2. Nc3 {[%clk 0:03:00.6]}
2... Nc6 {[%clk 0:02:56]} 3. g3 {[%clk 0:03:01.2]} 3... g6 {[%clk 0:02:56.1]} 4.
Bg2 {[%clk 0:03:01.9]} 4... Bg7 {[%clk 0:02:56.8]} 5. Nge2 {[%clk 0:03:02.5]}
5... e6 {[%clk 0:02:57.4]} 6. O-O {[%clk 0:03:03.2]} 6... Nge7 {[%clk
0:02:58.1]} 7. d3 {[%clk 0:03:03.5]} 7... O-O {[%clk 0:02:58.6]} 8. Be3 {[%clk
0:03:02.8]} 8... d6 {[%clk 0:02:58.2]} 9. d4 {[%clk 0:03:02.7]} 9... cxd4 {[%clk
0:02:35.8]} 10. Nxd4 {[%clk 0:03:02.4]} 10... a6 {[%clk 0:02:30]} 11. f4 {[%clk
0:02:58.7]} 11... Qc7 {[%clk 0:02:30.1]} 12. Nb3 {[%clk 0:02:55.3]} 12... b5
{[%clk 0:02:25.6]} 13. Qd2 {[%clk 0:02:48.7]} 13... Rd8 {[%clk 0:02:25.3]} 14.
Rad1 {[%clk 0:02:47.6]} 14... Bb7 {[%clk 0:02:25.6]} 15. Qf2 {[%clk 0:02:38.9]}
15... Rd7 {[%clk 0:02:15.6]} 16. Rd2 {[%clk 0:02:29.5]} 16... Nc8 {[%clk
0:01:54]} 17. Rfd1 {[%clk 0:02:26.9]} 17... Na5 {[%clk 0:01:54.2]} 18. Nxa5
{[%clk 0:02:09.3]} 18... Qxa5 {[%clk 0:01:55.1]} 19. e5 {[%clk 0:02:09.5]} 19...
Bxg2 {[%clk 0:01:50.4]} 20. Qxg2 {[%clk 0:02:08.4]} 20... d5 {[%clk 0:01:49.4]}
21. a3 {[%clk 0:01:56.4]} 21... Nb6 {[%clk 0:01:43.5]} 22. Rd3 {[%clk
0:01:43.6]} 22... Nc4 {[%clk 0:01:42.6]} 23. Bc1 {[%clk 0:01:43.3]} 23... Rc8
{[%clk 0:01:40]} 24. Ne4 {[%clk 0:01:38.5]} 24... Rdc7 {[%clk 0:01:31.2]} 25.
Ng5 {[%clk 0:01:36.1]} 25... Qb6+ {[%clk 0:01:06.3]} 26. Kh1 {[%clk 0:01:34.1]}
26... Bf8 {[%clk 0:00:54.6]} 27. c3 {[%clk 0:01:32.9]} 27... a5 {[%clk
0:00:53.4]} 28. g4 {[%clk 0:01:31.7]} 28... b4 {[%clk 0:00:50.9]} 29. axb4
{[%clk 0:01:30.9]} 29... axb4 {[%clk 0:00:51.8]} 30. b3 {[%clk 0:01:19.4]} 30...
Na5 {[%clk 0:00:51.4]} 31. cxb4 {[%clk 0:01:17.7]} 31... Rxc1 {[%clk 0:00:47]}
32. bxa5 {[%clk 0:01:17.2]} 32... Qxa5 {[%clk 0:00:44.6]} 33. f5 {[%clk
0:01:09.6]} 33... Qa1 {[%clk 0:00:43.4]} 34. Qf3 {[%clk 0:01:06.1]} 34... Rxd1+
{[%clk 0:00:42]} 35. Rxd1 {[%clk 0:01:02.8]} 35... Rc1 {[%clk 0:00:42.9]} 0-1